{"text_format":"1","workbook":"xlsx","n_sheets":2,"sheets":["СМЕТА","Расценки"],"not_rendered":{"charts":0,"images":0,"macros":1,"external_links":1,"defined_names":1,"comments":0,"pivot_tables":0},"unopened":[],"bounds":{"document_bytes":16777216,"sheet_cells":100000,"rows_first":2000,"rows_last":500,"rows_between":2000,"halvings":0,"cell_chars":16384,"cell_head_chars":4096},"cells_cut":0,"cells_raw":0,"read":"whole","date_system":"1900"}

{"sheet":"СМЕТА","index":0,"n_rows":5,"n_cols":9,"rows_kept":5,"cut":false,"hidden":false,"merged":[]}
[]
["Пол"]
["Гидроизоляция пола в 1 слой\n(Обмазочная гидроизоляция Водостоп \"Глимс\")",null,0,"кв.м.",150,75,{"$f":"ROUND(PRODUCT(C3:E3),0)","v":0},{"$f":"ROUND(PRODUCT(C3,F3),0)","v":0},{"$f":"SUM(G3:H3)","v":0}]
["Укладка шумоизоляции на пол\n(Шуманет Супер 105)",null,0,"кв.м.",150,360,0,0,0]
["Гидроизоляция пола в 1 слой\n(Обмазочная гидроизоляция Водостоп \"Глимс\")","балкон",0,"кв.м.",200,300,0,0,0]

{"sheet":"Расценки","index":1,"n_rows":5,"n_cols":9,"rows_kept":5,"cut":false,"hidden":false,"merged":[]}
["Расценки"]
["Гидроизоляция пола в 1 слой\n(Обмазочная гидроизоляция Водостоп \"Глимс\")","с/у",0,"кв.м.",300,130,{"$f":"ROUND(PRODUCT(C2:E2),0)","v":0},{"$f":"ROUND(PRODUCT(C2,F2),0)","v":0},{"$f":"SUM(G2:H2)","v":0}]
["Укладка шумоизоляции на пол\n(Шуманет Супер 105)",null,0,"кв.м.",150,75,0,0,{"$f":"SUM(G3:H3)","v":0}]
["Утепление пола пенополистиролом (ЭППС)",null,0,"кв.м.",150,360,0,0,0]
[{"$f":"[1]Расценки!$A5","v":"Утепление пола пенополистиролом (ЭППС)"},"балкон",0,"кв.м.",200,300,0,0,0]